bitfinex/quotes_BTCUSD_20240818
["timestamp","ask_amount","ask_price","bid_price","bid_amount"]
[1724022688203,2.54627036,59433.0,59432.0,0.128781]
[1724022688406,2.54627036,59433.0,59432.0,0.03153529]
[1724022688609,2.66404936,59433.0,59432.0,0.03153529]
[1724022688820,2.96110836,59433.0,59432.0,0.011]
[1724022689117,3.19666736,59433.0,59432.0,0.011]
[1724022689565,3.19566736,59433.0,59432.0,0.005]
[1724022689726,3.19666736,59433.0,59432.0,0.013]
[1724022689941,3.22122854,59433.0,59432.0,0.0089075]
[1724022690146,3.22222854,59433.0,59432.0,0.0189075]
[1724022690325,3.22122854,59433.0,59432.0,0.0109075]
[1724022690530,3.22122854,59433.0,59431.0,0.0011075]
[1724022690531,0.432144,59432.0,59431.0,0.0011075]
[1724022690745,0.9184348,59432.0,59431.0,0.0011075]
[1724022690963,1.1539978,59432.0,59431.0,0.0011075]
[1724022692217,0.9184348,59432.0,59431.0,0.0011075]
[1724022692418,0.6828718,59432.0,59431.0,0.0011075]
[1724022692589,0.6040718,59432.0,59431.0,0.0041075]
[1724022692808,0.8396348,59432.0,59431.0,0.0041075]
[1724022693225,0.8396348,59432.0,59431.0,0.0081075]
[1724022694613,0.4862908,59432.0,59431.0,0.2081905]
[1724022694970,0.4862908,59432.0,59431.0,0.60289302]
[1724022697311,0.6313908,59432.0,59431.0,0.22872602]
[1724022697513,0.6313908,59432.0,59431.0,0.02864302]
[1724022697712,0.6313908,59432.0,59431.0,0.14642602]
[1724022697915,0.6313908,59432.0,59431.0,0.02864302]
[1724022698555,0.6313908,59432.0,59431.0,0.14642602]
[1724022699341,0.6313908,59432.0,59431.0,0.1258905]
[1724022699544,0.6313908,59432.0,59431.0,0.14642611]
[1724022700002,0.7491718,59432.0,59431.0,0.02864311]
[1724022701444,0.6313908,59432.0,59431.0,0.02864311]
[1724022701650,0.7491718,59432.0,59431.0,0.02864311]
[1724022702109,0.4862908,59432.0,59431.0,1.00022711]
[1724022702309,0.4862908,59432.0,59431.0,1.13717585]
[1724022702530,0.4862908,59432.0,59431.0,1.22020587]
[1724022702733,0.4862908,59432.0,59431.0,1.59359844]
[1724022702948,0.4862908,59432.0,59431.0,1.59059844]
[1724022703159,0.4862908,59432.0,59431.0,1.58859844]
[1724022703364,0.4882908,59432.0,59431.0,1.61059844]
[1724022703563,0.4882908,59432.0,59431.0,1.60759844]
[1724022703780,0.4872908,59432.0,59431.0,1.76815298]
[1724022704088,0.4872908,59432.0,59431.0,1.76615298]
[1724022704295,0.4872908,59432.0,59431.0,1.71066863]
[1724022704513,0.4862908,59432.0,59431.0,1.7581459]
[1724022704715,0.4872908,59432.0,59431.0,1.73719962]
[1724022704915,0.4872908,59432.0,59431.0,1.77114438]
[1724022705119,0.4862908,59432.0,59431.0,1.75814438]
[1724022705315,0.4862908,59432.0,59431.0,1.73761187]
[1724022705518,0.4862908,59432.0,59431.0,1.77214438]
[1724022705744,0.4862908,59432.0,59431.0,1.78514438]
[1724022705966,0.4862908,59432.0,59431.0,1.75061187]
[1724022706169,0.4862908,59432.0,59431.0,1.78514439]
[1724022706515,0.4862908,59432.0,59431.0,1.78516102]
[1724022706926,0.4862908,59432.0,59431.0,1.78616102]
[1724022707127,0.4862908,59432.0,59431.0,1.78516102]
[1724022707856,0.4862908,59432.0,59431.0,1.7093823]
[1724022709243,0.4862908,59432.0,59431.0,1.15516076]
[1724022709475,0.4862908,59432.0,59431.0,0.9521617]
[1724022709688,0.4862908,59432.0,59431.0,0.04964002]
[1724022709865,0.4862908,59432.0,59431.0,0.10016358]
[1724022710100,0.4862908,59432.0,59431.0,0.04964002]
[1724022710215,0.5687908,59432.0,59431.0,0.04964002]
[1724022710624,0.5687908,59432.0,59431.0,0.03564002]
[1724022710880,0.5697908,59432.0,59431.0,0.04764002]
[1724022711082,0.5697908,59432.0,59431.0,0.03364002]
[1724022711285,0.5707908,59432.0,59431.0,0.04464002]
[1724022712439,0.5707908,59432.0,59431.0,0.04464278]
[1724022713710,0.5707908,59432.0,59431.0,0.12042617]
[1724022714108,0.5707908,59432.0,59431.0,0.04464278]
[1724022714513,0.6885718,59432.0,59431.0,0.04464278]
[1724022714731,1.24770053,59432.0,59431.0,0.04464278]
[1724022714947,1.24770053,59432.0,59431.0,0.0241075]
[1724022719206,1.48326353,59432.0,59431.0,0.0241075]
[1724022720546,1.48226353,59432.0,59431.0,0.0131075]
[1724022720749,1.48126353,59432.0,59431.0,0.0011075]
[1724022720971,1.48226353,59432.0,59431.0,0.0071075]
[1724022721413,1.48126353,59432.0,59431.0,0.0011075]
[1724022721617,1.48126353,59432.0,59431.0,0.0091075]
[1724022721989,1.48126353,59432.0,59431.0,0.0041075]
[1724022722188,1.48126353,59432.0,59431.0,0.0061075]
[1724022725605,1.48208853,59432.0,59431.0,0.0061075]
[1724022725919,1.74165153,59432.0,59431.0,0.0061075]
[1724022726125,1.74065153,59432.0,59431.0,0.0061075]
[1724022726450,1.74165153,59432.0,59431.0,0.0061075]
[1724022726650,1.74165153,59432.0,59431.0,0.0041075]
[1724022727125,1.74565153,59432.0,59431.0,0.0041075]
[1724022727506,1.74565153,59432.0,59431.0,0.0011075]
[1724022727663,1.74865153,59432.0,59431.0,0.0011075]
[1724022728064,1.091105,59428.0,59427.0,0.0108198]
[1724022728271,1.97598166,59428.0,59427.0,0.0108198]
[1724022728486,1.95248166,59428.0,59427.0,0.0108198]
[1724022728685,2.22502911,59428.0,59427.0,0.0108198]
[1724022728887,2.30032684,59428.0,59427.0,0.0108198]
[1724022729200,2.47188138,59428.0,59427.0,0.0108198]
[1724022729400,2.27517037,59428.0,59427.0,0.0108198]
[1724022729600,2.03959137,59428.0,59427.0,0.0108198]
[1724022730025,2.03959137,59428.0,59427.0,0.0078706]
[1724022730260,2.04359137,59428.0,59427.0,0.0088706]
[1724022730448,2.04359137,59428.0,59427.0,0.0098706]
[1724022730449,2.10009077,59428.0,59427.0,0.0098706]
[1724022730647,2.09009077,59428.0,59427.0,0.0088706]
[1724022730855,2.08209077,59428.0,59427.0,0.0078706]
[1724022731051,2.10909077,59428.0,59427.0,0.0098706]
[1724022731692,2.10709077,59428.0,59427.0,0.0098706]
[1724022731862,2.09708166,59428.0,59427.0,0.0098706]
[1724022733411,2.2706362,59428.0,59427.0,0.0098706]
[1724022733623,2.10108166,59428.0,59427.0,0.0098706]
[1724022734027,2.33666066,59428.0,59427.0,0.0098706]
[1724022735193,2.33466066,59428.0,59427.0,0.0098706]
[1724022735396,2.13066066,59428.0,59427.0,0.0098706]
[1724022735615,2.3022152,59428.0,59427.0,0.0098706]
[1724022735822,2.12997923,59428.0,59427.0,0.0098706]
[1724022738447,2.12997923,59428.0,59427.0,0.0107781]
[1724022740115,2.12597923,59428.0,59427.0,0.0107781]
[1724022740903,1.89040023,59428.0,59427.0,0.0107781]
[1724022741308,1.73708166,59428.0,59427.0,0.0107781]
[1724022741473,1.50150266,59428.0,59427.0,0.0107781]
[1724022742942,1.50150266,59428.0,59427.0,0.0097781]
[1724022742943,1.75508166,59428.0,59427.0,0.0097781]
[1724022743149,1.76608166,59428.0,59427.0,0.0107781]
[1724022743352,1.53050266,59428.0,59427.0,0.0107781]
[1724022743599,1.76640023,59428.0,59427.0,0.0107781]
[1724022743826,1.77640023,59428.0,59427.0,0.0097781]
[1724022744027,1.77640023,59428.0,59427.0,0.0107781]
[1724022744028,1.78840023,59428.0,59427.0,0.0107781]
[1724022744602,1.88840023,59428.0,59427.0,0.0107781]
[1724022744736,2.06195477,59428.0,59427.0,0.0107781]
[1724022745510,2.29953377,59428.0,59427.0,0.0107781]
[1724022746419,2.30977517,59428.0,59427.0,0.0107781]
[1724022747188,2.30937011,59428.0,59427.0,0.0107781]
[1724022747384,2.13781557,59428.0,59427.0,0.0107781]
[1724022747586,2.13581557,59428.0,59427.0,0.0107781]
[1724022747784,2.13381557,59428.0,59427.0,0.0107781]
[1724022747985,2.13781557,59428.0,59427.0,0.0107781]
[1724022749169,2.13381557,59428.0,59427.0,0.0107781]
[1724022750325,2.13581557,59428.0,59427.0,0.0107781]
[1724022750802,2.13781557,59428.0,59427.0,0.0107781]
[1724022751874,2.13864057,59428.0,59427.0,0.0107781]
[1724022752295,2.13464057,59428.0,59427.0,0.0107781]
[1724022752492,2.21904057,59428.0,59427.0,0.0107781]
[1724022752738,2.22104057,59428.0,59427.0,0.0107781]
[1724022753484,2.39259511,59428.0,59427.0,0.0107781]
[1724022753697,2.42961489,59428.0,59427.0,0.0107781]
[1724022754007,2.25406035,59428.0,59427.0,0.0107781]
[1724022754188,2.21704057,59428.0,59427.0,0.0107781]
[1724022755506,2.25405814,59428.0,59427.0,0.0107781]
[1724022755738,2.25805814,59428.0,59427.0,0.0107781]
[1724022758469,2.22144563,59428.0,59427.0,0.0107781]
[1724022758695,2.21744563,59428.0,59427.0,0.0107781]
[1724022759940,2.22144563,59428.0,59427.0,0.0107781]
[1724022760138,2.21744563,59428.0,59427.0,0.0107781]
[1724022760542,2.25847652,59428.0,59427.0,0.0107781]
[1724022760692,2.25447652,59428.0,59427.0,0.0107781]
[1724022761094,2.25647652,59428.0,59427.0,0.0107781]
[1724022761510,2.25447652,59428.0,59427.0,0.0107781]
[1724022763062,2.25647652,59428.0,59427.0,0.0107781]
[1724022765141,2.25847652,59428.0,59427.0,0.0107781]
[1724022765983,2.25847652,59428.0,59425.0,0.0067764]
[1724022765984,0.82887257,59426.0,59425.0,0.0067764]
[1724022766219,0.82887257,59426.0,59414.0,0.009064]
[1724022766220,0.34813357,59415.0,59414.0,4e-07]
[1724022766421,1.58511534,59415.0,59414.0,4e-07]
[1724022766632,2.39200534,59415.0,59414.0,4e-07]
[1724022766804,2.66668878,59415.0,59414.0,4e-07]
[1724022768070,2.71657629,59415.0,59414.0,4e-07]
[1724022768285,2.71657629,59415.0,59365.0,0.62386761]
[1724022768286,0.001,59386.0,59365.0,0.62386761]
[1724022768486,0.001,59386.0,59355.0,0.21021347]
[1724022768487,0.353832,59350.0,59349.0,0.07328665]
[1724022768728,0.353832,59350.0,59307.0,0.1606743]
[1724022768729,0.03,59325.0,59307.0,0.1606743]
[1724022768901,0.03,59325.0,59295.0,0.22365449]
[1724022768902,1.68347072,59350.0,59298.0,1.06061969]
[1724022768903,0.001,59305.0,59298.0,1.06061969]
[1724022769139,0.001,59305.0,59281.0,0.22365449]
[1724022769140,0.46788965,59282.0,59281.0,0.22365449]
[1724022769343,0.8255288,59282.0,59281.0,0.0099437]
[1724022769548,0.8255288,59282.0,59279.0,0.0664]
[1724022769549,0.118083,59280.0,59279.0,0.0051]
[1724022769742,0.35425,59280.0,59279.0,0.0589]
[1724022769964,0.1,59288.0,59279.0,0.0589]
[1724022769965,0.075,59295.0,59279.0,0.0589]
[1724022770154,0.075,59295.0,59277.0,0.011826]
[1724022770155,0.05008817,59289.0,59278.0,0.06]
[1724022770378,0.013,59282.0,59277.0,0.011826]
[1724022770584,0.118087,59278.0,59277.0,0.006826]
[1724022770785,0.624167,59278.0,59277.0,0.006826]
[1724022771177,0.55363941,59278.0,59277.0,0.006826]
[1724022771387,0.67172641,59278.0,59277.0,0.006826]
[1724022771594,0.90790141,59278.0,59277.0,0.006826]
[1724022771794,0.90790141,59278.0,59277.0,0.51860109]
[1724022771795,0.55363941,59278.0,59277.0,0.51860109]
[1724022772009,0.55363941,59278.0,59277.0,0.006826]
[1724022772219,0.67172641,59278.0,59277.0,0.006826]
[1724022772442,0.55363941,59278.0,59277.0,0.006826]
[1724022772597,0.67172641,59278.0,59277.0,0.006826]
[1724022772816,0.55363941,59278.0,59277.0,0.008826]
[1724022773439,0.67172641,59278.0,59277.0,0.006826]
[1724022773630,0.67172641,59278.0,59277.0,0.008826]
[1724022773846,0.90790141,59278.0,59277.0,0.008826]
[1724022774051,0.97507405,59278.0,59277.0,0.008826]
[1724022774280,0.53952264,59278.0,59277.0,0.006826]
[1724022774484,0.53952264,59278.0,59276.0,1.26675208]
[1724022774485,0.55599865,59277.0,59276.0,1.26675208]
[1724022774691,1.10430891,59277.0,59276.0,1.26675208]
[1724022774908,1.29727765,59277.0,59276.0,1.26675208]
[1724022775108,1.32027765,59277.0,59276.0,1.26675208]
[1724022775310,1.096547,59277.0,59276.0,1.26675208]
[1724022775521,0.860368,59277.0,59276.0,1.26675208]
[1724022775741,1.41949345,59277.0,59276.0,1.13933463]
[1724022776164,0.79122765,59272.0,59271.0,0.0002]
[1724022776370,0.35389496,59252.0,59250.0,0.8]
[1724022776586,0.00073065,59263.0,59250.0,0.8]
[1724022776799,0.03,59269.0,59257.0,0.002]
[1724022776800,0.118127,59258.0,59257.0,0.002]
[1724022776999,0.118127,59258.0,59250.0,0.80126935]
[1724022777000,0.5061,59262.0,59250.0,0.80126935]
[1724022777001,0.5061,59262.0,59261.0,0.002]
[1724022777239,0.50283065,59258.0,59250.0,0.8]
[1724022777455,0.50283065,59258.0,59257.0,0.0839]
[1724022777660,0.50283065,59258.0,59257.0,0.201029]
[1724022777894,0.50283065,59258.0,59257.0,0.4574909]
[1724022778097,0.50283065,59258.0,59257.0,0.6229909]
[1724022778303,0.50283065,59258.0,59257.0,1.05480444]
[1724022778505,0.43623065,59258.0,59257.0,1.29106344]
[1724022778681,0.35583065,59258.0,59257.0,1.00310444]
[1724022778891,0.118071,59286.0,59266.0,0.001]
[1724022779027,0.51177509,59280.0,59267.0,0.0237225]
[1724022779247,0.118069,59287.0,59267.0,0.001]
[1724022779626,0.30119123,59293.0,59267.0,0.001]
[1724022779627,0.118072,59286.0,59270.0,0.118102]
[1724022779817,0.118074,59285.0,59270.0,0.118102]
[1724022780051,0.50609,59285.0,59267.0,0.001]
[1724022780225,0.50609,59285.0,59267.0,0.0237234]
[1724022780398,0.50609,59285.0,59250.0,0.8]
[1724022780399,0.2586,59270.0,59250.0,0.8]
[1724022780616,0.118131,59256.0,59255.0,1.2774]
[1724022780785,0.001,59266.0,59255.0,0.653179]
[1724022780985,0.118131,59256.0,59255.0,0.653179]
[1724022781217,0.590655,59256.0,59255.0,0.653179]
[1724022781487,1.615797,59256.0,59255.0,0.653179]
[1724022781829,0.50628,59256.0,59255.0,0.771312]
[1724022782032,0.50628,59256.0,59255.0,1.086078]
[1724022782423,0.50628,59256.0,59255.0,0.849812]
[1724022782627,0.50628,59256.0,59255.0,1.086078]
[1724022782835,0.50628,59256.0,59255.0,1.322344]
[1724022783197,0.50628,59256.0,59255.0,1.422304]
[1724022783415,0.50628,59256.0,59255.0,1.65857]
[1724022783797,0.50628,59256.0,59255.0,1.422304]
[1724022784873,0.50628,59256.0,59255.0,1.423304]
[1724022785322,0.45029976,59256.0,59255.0,1.85412454]
[1724022785522,0.27285955,59256.0,59255.0,1.12248554]
[1724022785727,0.27285955,59256.0,59255.0,1.36075154]
[1724022786147,0.51177509,59288.0,59267.0,0.001]
[1724022786370,0.0612,59299.0,59274.0,0.001]
[1724022786371,0.51177509,59291.0,59274.0,0.001]
[1724022786569,0.0612,59299.0,59289.0,0.118065]
[1724022786770,0.118057,59293.0,59290.0,0.0118065]
[1724022786972,0.118057,59293.0,59269.0,0.123]
[1724022786973,0.001,59286.0,59270.0,0.17155454]
[1724022787244,0.001,59290.0,59280.0,0.236165]
[1724022787413,0.236106,59296.0,59271.0,0.12715545]
[1724022787414,0.001,59291.0,59271.0,0.12715545]
[1724022787620,0.001,59293.0,59272.0,0.05854457]
[1724022787850,0.118054,59295.0,59277.0,0.236177]
[1724022787851,0.001,59290.0,59277.0,0.236177]
[1724022788001,0.001,59293.0,59288.0,0.118066]
[1724022788204,0.001,59289.0,59285.0,0.118072]
[1724022788436,0.001,59289.0,59283.0,0.118077]
[1724022788640,0.001,59290.0,59285.0,0.118073]
[1724022788837,0.001,59289.0,59285.0,0.118073]
[1724022789052,0.001,59287.0,59286.0,0.03778446]
[1724022789254,0.001,59286.0,59284.0,0.118074]
[1724022789494,0.001,59286.0,59271.0,0.3362]
[1724022789819,0.001,59280.0,59272.0,0.03362]
[1724022790018,0.23614,59287.0,59273.0,0.118097]
[1724022790019,0.001,59279.0,59273.0,0.118097]
[1724022790242,0.2596,59297.0,59258.0,0.17155454]
[1724022790243,0.001,59283.0,59264.0,0.1]
[1724022790445,0.001,59285.0,59265.0,0.01]
[1724022790647,0.001,59289.0,59278.0,0.236174]
[1724022790854,0.236133,59289.0,59271.0,0.236202]
[1724022791027,0.118055,59294.0,59272.0,0.02637357]
[1724022791263,0.297294,59299.0,59282.0,0.118079]
[1724022791264,0.118064,59290.0,59282.0,0.118079]
[1724022791675,0.118064,59290.0,59277.0,0.236177]
[1724022791676,0.118064,59290.0,59280.0,0.236167]
[1724022791883,0.118061,59291.0,59283.0,0.118076]
[1724022792090,0.11806,59292.0,59284.0,0.118075]
[1724022792293,0.001,59296.0,59283.0,0.0354237]
[1724022792471,0.001,59291.0,59283.0,0.118077]
[1724022792669,0.001,59293.0,59279.0,0.236168]
[1724022792873,0.001,59296.0,59273.0,0.5317679]
[1724022793079,0.001,59293.0,59274.0,0.39331353]
[1724022793300,0.118064,59290.0,59274.0,0.39331353]
[1724022793431,0.236109,59295.0,59280.0,0.236167]
[1724022793432,0.001,59294.0,59280.0,0.236167]
[1724022793631,0.118058,59293.0,59284.0,0.118074]
[1724022793832,0.001,59296.0,59281.0,0.01999281]
[1724022794105,0.118062,59291.0,59283.0,0.118076]
[1724022794691,0.118062,59291.0,59282.0,0.04923318]
[1724022794692,0.118062,59291.0,59282.0,0.16731118]
[1724022794893,0.001,59296.0,59282.0,0.16731118]
[1724022795118,0.236119,59292.0,59283.0,0.02788316]
[1724022795345,0.001,59282.0,59274.0,0.1]
[1724022795540,0.236181,59277.0,59267.0,0.118109]
[1724022795726,0.2586,59289.0,59268.0,0.1]
[1724022795727,0.118092,59276.0,59268.0,0.1]
[1724022795944,0.236141,59287.0,59268.0,0.118106]
[1724022795945,0.237173,59279.0,59268.0,0.118106]
[1724022796101,0.001,59281.0,59269.0,0.346208]
[1724022796308,0.236162,59282.0,59272.0,0.118098]
[1724022796309,0.001,59279.0,59272.0,0.118098]
[1724022796528,0.236153,59284.0,59270.0,0.058243]
[1724022796705,0.236159,59282.0,59271.0,0.01887334]
[1724022796932,0.236146,59286.0,59271.0,0.01887334]
[1724022797113,0.00557806,59281.0,59274.0,0.118095]
[1724022797462,0.236134,59289.0,59274.0,0.118095]
[1724022797463,0.00557806,59280.0,59279.0,0.118085]
[1724022797612,0.01480894,59295.0,59282.0,0.118078]
[1724022797613,0.001,59295.0,59282.0,0.118078]
[1724022797816,0.001,59295.0,59279.0,0.336171]
[1724022797817,0.11806,59292.0,59284.0,0.118074]
[1724022798024,0.236086,59301.0,59280.0,0.0118085]
[1724022798025,0.00557704,59291.0,59290.0,0.354189]
[1724022798222,0.00557704,59291.0,59290.0,0.590316]
[1724022798379,0.01938602,59291.0,59290.0,0.590316]
[1724022799024,0.00557704,59291.0,59290.0,0.590316]
[1724022799372,0.01938602,59291.0,59290.0,0.590316]
[1724022799568,0.00557704,59291.0,59290.0,0.926443]
[1724022800103,0.00557704,59291.0,59290.0,1.33412454]
[1724022800325,0.00557704,59291.0,59290.0,1.35712454]
[1724022800764,0.01380898,59313.0,59312.0,0.118019]
[1724022801054,0.02747515,59319.0,59312.0,0.118019]
[1724022801055,0.118006,59319.0,59312.0,0.118019]
[1724022801226,0.01921831,59318.0,59313.0,0.0354066]
[1724022801427,0.01921831,59317.0,59312.0,0.118019]
[1724022801627,0.01921831,59316.0,59312.0,0.118019]
[1724022801988,0.237049,59310.0,59297.0,0.236098]
[1724022802155,0.01921831,59309.0,59298.0,0.1336098]
[1724022802353,0.13724631,59308.0,59298.0,0.1336098]
[1724022802513,0.13724631,59308.0,59300.0,0.118042]
[1724022802514,0.01921831,59307.0,59300.0,0.118042]
[1724022802712,0.118028,59308.0,59301.0,0.26154754]
[1724022802713,0.01921831,59306.0,59301.0,0.26154754]
[1724022802925,0.01921831,59305.0,59301.0,0.04350654]
[1724022803320,0.01921831,59304.0,59301.0,0.1]
[1724022803495,0.01921831,59303.0,59301.0,0.1]
[1724022803799,0.01921831,59302.0,59301.0,0.454124]
[1724022803930,0.00557446,59302.0,59301.0,0.499538]
[1724022804154,0.00557446,59302.0,59301.0,0.263455]
[1724022804352,0.00557446,59302.0,59301.0,0.477124]
[1724022804562,0.00557446,59302.0,59301.0,0.690207]
[1724022804966,0.00557446,59302.0,59301.0,0.218041]
[1724022805169,0.00557446,59302.0,59301.0,0.454124]
[1724022805385,0.00557446,59302.0,59301.0,0.690207]
[1724022805588,0.00557446,59302.0,59301.0,0.472166]
[1724022805791,0.00557446,59302.0,59301.0,0.590207]
[1724022805989,0.00557446,59302.0,59301.0,0.82629]
[1724022806391,0.00557446,59302.0,59301.0,0.590207]
[1724022807218,0.00557446,59302.0,59301.0,0.82629]
[1724022807586,0.00557446,59302.0,59301.0,0.590207]
[1724022807918,0.00557446,59302.0,59301.0,0.92629]
[1724022808122,0.00557446,59302.0,59301.0,0.690207]
[1724022808366,0.00557446,59302.0,59301.0,0.94929]
[1724022808564,0.001,59317.0,59312.0,0.118019]
[1724022808867,0.00557455,59316.0,59313.0,0.236035]
[1724022809078,0.00557455,59315.0,59313.0,0.118017]
[1724022809243,0.0789,59322.0,59313.0,0.118017]
[1724022809244,0.00557455,59314.0,59313.0,0.118017]
[1724022809797,0.00557432,59314.0,59313.0,0.118017]
[1724022810432,0.00557432,59314.0,59313.0,0.590087]
[1724022810823,0.00557432,59314.0,59313.0,0.354052]
[1724022811203,0.00557432,59314.0,59313.0,0.590087]
[1724022813302,0.001,59323.0,59316.0,0.118011]
[1724022813507,0.00557417,59322.0,59316.0,0.118011]
[1724022813713,0.00557417,59321.0,59316.0,0.118011]
[1724022813921,0.00657417,59320.0,59313.0,0.236035]
[1724022814126,0.001,59317.0,59301.0,0.123]
[1724022814332,0.00557417,59316.0,59312.0,0.118019]
[1724022814536,0.00557417,59315.0,59314.0,0.118015]
[1724022814895,0.00557417,59315.0,59314.0,0.354046]
[1724022815270,0.00557417,59315.0,59313.0,0.118017]
[1724022815473,0.00557417,59314.0,59313.0,0.118017]
[1724022816356,0.06237677,59319.0,59307.0,0.236058]
[1724022816357,0.1669078,59319.0,59312.0,0.118019]
[1724022816556,0.001,59312.0,59303.0,0.12298545]
[1724022816763,0.118029,59308.0,59297.0,0.336097]
[1724022816937,0.12360457,59307.0,59298.0,0.1]
[1724022817092,0.00657457,59306.0,59299.0,0.236091]
[1724022817453,0.00557457,59305.0,59301.0,0.236081]
[1724022817611,0.00557457,59305.0,59302.0,0.1]
[1724022817612,0.00557539,59305.0,59302.0,0.1]
[1724022817816,0.00557539,59304.0,59302.0,0.1]
[1724022818021,0.01347504,59313.0,59303.0,0.0336091]
[1724022818222,0.07435271,59316.0,59303.0,0.0336091]
[1724022818223,0.005575,59312.0,59303.0,0.0336091]
[1724022818420,0.06237684,59315.0,59302.0,0.1]
[1724022818421,0.005575,59311.0,59306.0,0.11803]
[1724022818630,0.005575,59310.0,59307.0,0.118029]
[1724022818835,0.005575,59309.0,59305.0,0.118033]
[1724022819035,0.005575,59308.0,59306.0,0.118031]
[1724022819265,0.005575,59307.0,59306.0,0.354094]
[1724022820572,0.005575,59307.0,59306.0,0.118031]
[1724022821470,0.005575,59307.0,59306.0,0.354094]
[1724022821669,0.001,59314.0,59308.0,0.118027]
[1724022821884,0.118015,59315.0,59308.0,0.118027]
[1724022822088,0.00557469,59314.0,59309.0,0.118025]
[1724022822295,0.00557469,59314.0,59307.0,0.236059]
[1724022822296,0.118014,59315.0,59308.0,0.118027]
[1724022822470,0.00557472,59314.0,59308.0,0.118026]
[1724022822700,0.118014,59315.0,59308.0,0.118026]
[1724022822701,0.00557472,59313.0,59308.0,0.118026]
[1724022822904,0.06237711,59322.0,59309.0,0.0354088]
[1724022823108,0.06237711,59322.0,59303.0,0.01]
[1724022823109,0.00557436,59321.0,59304.0,0.138]
[1724022823309,0.237002,59322.0,59306.0,0.236062]
[1724022823310,0.12357836,59320.0,59306.0,0.236062]
[1724022823515,0.237002,59322.0,59306.0,0.236062]
[1724022823516,0.00557436,59319.0,59315.0,0.118012]
[1724022823732,0.118,59322.0,59310.0,0.236047]
[1724022823733,0.00557436,59318.0,59310.0,0.236047]
[1724022823944,0.00557436,59317.0,59313.0,0.236033]
[1724022824146,0.00557436,59316.0,59312.0,0.118019]
[1724022824348,0.00557436,59315.0,59313.0,0.118016]
[1724022824552,0.00557436,59314.0,59313.0,0.118016]
[1724022825529,0.000826,59315.0,59313.0,0.118016]
[1724022826355,0.00557434,59314.0,59313.0,0.118016]
[1724022827126,0.00557434,59314.0,59307.0,0.336059]
[1724022827328,0.00557434,59313.0,59307.0,0.1]
[1724022827540,0.00557434,59312.0,59310.0,0.118023]
[1724022827735,0.00557434,59311.0,59310.0,0.118023]
[1724022828313,0.00557434,59311.0,59307.0,0.236056]
[1724022828513,0.000826,59315.0,59307.0,0.236056]
[1724022828514,0.00557434,59310.0,59309.0,0.118025]
[1724022828968,0.000826,59315.0,59310.0,0.118023]
[1724022829174,0.00557451,59314.0,59310.0,0.118023]
[1724022829378,0.00557451,59314.0,59306.0,0.1]
[1724022829379,0.00557451,59313.0,59306.0,0.1]
[1724022829589,0.00557441,59312.0,59305.0,0.1]
[1724022829763,0.000826,59315.0,59311.0,0.118021]
[1724022829971,0.0055744,59314.0,59305.0,0.1]
[1724022830173,0.00557441,59314.0,59313.0,0.118017]
[1724022830377,0.00557435,59314.0,59309.0,0.23605]
[1724022830646,0.000826,59315.0,59307.0,0.118029]
[1724022830647,0.001,59312.0,59307.0,0.118029]
[1724022830805,0.001,59312.0,59305.0,0.1]
[1724022830806,0.00557435,59311.0,59305.0,0.1]
[1724022830964,0.00557435,59310.0,59306.0,0.11803]
[1724022831162,0.00557435,59309.0,59307.0,0.118029]
[1724022831419,0.00557435,59308.0,59307.0,0.354088]
[1724022831626,0.000826,59315.0,59307.0,0.354088]
[1724022831627,0.00557435,59314.0,59312.0,0.118019]
[1724022831850,0.00557449,59313.0,59312.0,0.118019]
[1724022832295,0.00557449,59313.0,59312.0,0.354058]
[1724022832890,0.00557449,59313.0,59312.0,0.118019]
[1724022833988,0.00557449,59313.0,59310.0,0.236044]
[1724022834192,0.00557449,59312.0,59311.0,0.590106]
[1724022835243,0.00557449,59312.0,59311.0,0.6488124]
[1724022835693,0.00557449,59312.0,59311.0,0.590106]
[1724022836104,0.00557449,59312.0,59311.0,0.354063]
[1724022836316,0.00557449,59312.0,59311.0,0.590106]
[1724022838009,0.000826,59314.0,59313.0,0.590087]
[1724022838205,0.00640024,59314.0,59313.0,0.590087]
[1724022840087,0.00640024,59314.0,59313.0,0.354052]
[1724022841435,0.000826,59314.0,59313.0,0.354052]
[1724022841645,0.00640024,59314.0,59313.0,0.590087]
[1724022841890,0.00640024,59314.0,59313.0,0.354052]
[1724022842314,0.00640024,59314.0,59313.0,0.118017]
[1724022843416,0.00740024,59314.0,59312.0,0.118019]
[1724022843637,0.00657424,59313.0,59311.0,0.118021]
[1724022843850,0.00657424,59312.0,59311.0,0.118021]
[1724022844285,0.00657424,59312.0,59311.0,0.354064]
[1724022844286,0.00557424,59312.0,59311.0,0.354064]
[1724022844544,0.00557424,59312.0,59310.0,0.118023]
[1724022844750,0.000826,59314.0,59311.0,0.118021]
[1724022844958,0.000826,59314.0,59313.0,0.354052]
[1724022845160,0.00640039,59314.0,59313.0,0.118017]
[1724022845582,0.00640039,59314.0,59312.0,0.118019]
[1724022846200,0.00640039,59314.0,59313.0,0.118017]
[1724022846201,0.000826,59314.0,59313.0,0.118017]
[1724022846406,0.00640029,59314.0,59312.0,0.118019]
[1724022846606,0.00640029,59314.0,59310.0,0.118023]
[1724022846827,0.00557429,59313.0,59310.0,0.118022]
[1724022846976,0.00057429,59313.0,59310.0,0.118022]
[1724022847191,0.00057429,59313.0,59311.0,0.118021]
[1724022847375,0.000826,59314.0,59311.0,0.118021]
[1724022847575,0.000826,59314.0,59312.0,0.118019]
[1724022849302,0.000826,59314.0,59309.0,0.236051]
[1724022849530,0.000826,59314.0,59312.0,0.0009086]
[1724022849993,0.000826,59314.0,59312.0,0.1189276]
[1724022850641,0.000826,59314.0,59313.0,0.118017]
[1724022855393,0.000826,59314.0,59313.0,0.76501316]
[1724022855673,0.000826,59314.0,59313.0,1.12404816]
[1724022855826,0.000826,59314.0,59313.0,1.37010323]
[1724022856275,0.000826,59314.0,59313.0,1.10769661]
[1724022856445,0.000826,59314.0,59313.0,0.86164154]
[1724022856850,0.000826,59314.0,59313.0,1.09767654]
[1724022857239,0.000826,59314.0,59312.0,0.0009086]
[1724022857444,0.000826,59314.0,59313.0,0.118017]
[1724022857642,0.000826,59314.0,59313.0,0.590087]